bitfinex-derivatives/quotes_ETHF0:USTF0_20250810
["timestamp","ask_amount","ask_price","bid_price","bid_amount"]
[1754863512368,0.81794,4218.3,4218.2,1.5409]
[1754863512565,0.81794,4218.3,4217.1,1.18543]
[1754863512566,0.47409,4217.8,4217.7,1.5409]
[1754863512866,0.47409,4217.8,4217.1,1.18543]
[1754863512867,0.6237,4218.3,4218.2,1.5409]
[1754863513064,1.09774,4218.3,4218.2,1.5409]
[1754863513459,1.27334,4218.3,4218.2,0.7098]
[1754863513659,1.09774,4218.3,4218.2,1.5409]
[1754863513855,0.64324,4218.3,4218.2,1.5409]
[1754863514263,0.6237,4218.3,4218.2,1.5409]
[1754863514460,0.47398,4218.8,4218.7,0.6193]
[1754863514667,1.09768,4218.8,4218.7,1.5409]
[1754863515166,0.47406,4218.1,4218.0,0.6193]
[1754863515372,0.1692,4218.1,4218.0,1.5409]
[1754863515572,1.09773,4218.4,4218.3,0.6193]
[1754863515769,0.47401,4218.6,4218.3,1.5409]
[1754863516066,0.47401,4218.6,4217.7,1.18526]
[1754863516067,0.81791,4218.6,4218.5,0.6193]
[1754863516366,1.09771,4218.6,4218.5,0.2673]
[1754863516571,0.6237,4218.1,4218.0,2.01497]
[1754863516967,0.3439,4218.1,4218.0,2.01497]
[1754863517169,0.1692,4218.1,4218.0,2.01497]
[1754863517767,0.6237,4218.4,4218.3,1.5409]
[1754863518468,0.1692,4218.4,4218.3,1.5409]
[1754863519476,0.3439,4218.4,4218.3,1.5409]
[1754863519669,0.6237,4218.4,4218.3,1.5409]
[1754863520070,0.6237,4218.4,4218.3,1.2691]
[1754863520271,0.6237,4218.4,4218.3,1.5409]
[1754863521171,0.1756,4218.7,4217.7,1.3521]
[1754863521172,1.09779,4217.8,4217.7,1.3521]
[1754863521379,1.27339,4217.8,4217.7,0.2673]
[1754863522177,1.27339,4217.8,4217.2,1.5409]
[1754863522178,0.81805,4217.3,4217.2,1.5409]
[1754863522473,1.09785,4217.3,4217.2,1.5409]
[1754863522779,0.6237,4217.3,4217.2,1.5409]
[1754863522977,0.81803,4217.6,4217.5,2.01503]
[1754863523272,0.81803,4217.6,4217.5,1.5409]
[1754863523477,0.1692,4217.6,4217.5,1.5409]
[1754863524274,0.6237,4217.6,4217.5,1.5409]
[1754863526181,0.4741,4217.8,4217.7,1.5409]
[1754863526182,1.0978,4217.8,4217.7,1.5409]
[1754863526483,1.0978,4217.8,4217.7,1.2691]
[1754863527084,1.0978,4217.8,4217.7,1.5409]
[1754863528684,1.09782,4217.6,4217.5,1.2691]
[1754863528983,1.09782,4217.6,4217.5,1.5409]
[1754863529889,0.3439,4217.6,4217.5,1.5409]
[1754863530075,0.6237,4217.6,4217.5,1.5409]
[1754863530278,0.345,4217.3,4217.2,1.2194]
[1754863530473,0.8013,4217.3,4217.2,1.2194]
[1754863530778,0.8013,4217.3,4217.2,0.2673]
[1754863531075,0.2798,4217.2,4214.9,1.18603]
[1754863531278,0.3439,4215.9,4215.8,1.5409]
[1754863531577,0.47428,4216.2,4216.1,0.6193]
[1754863531780,0.47428,4216.2,4216.1,1.5409]
[1754863531980,0.64348,4216.2,4216.1,1.5409]
[1754863532180,1.09798,4216.2,4216.1,1.5409]
[1754863532386,0.6237,4216.2,4216.1,1.5409]
[1754863532886,0.6248,4216.2,4216.1,1.5409]
[1754863534880,0.75408,4216.1,4215.8,1.0309]
[1754863535089,0.8013,4215.9,4215.8,1.0309]
[1754863535282,0.8013,4215.9,4215.4,0.2673]
[1754863535487,0.8013,4215.5,4215.4,0.2673]
[1754863535687,1.26866,4215.4,4215.3,0.7131]
[1754863536077,0.0024,4215.4,4215.3,1.5385]
[1754863536281,0.6168,4215.9,4215.8,0.7131]
[1754863536688,0.6168,4215.9,4215.8,1.2759]
[1754863536982,0.7943,4215.9,4215.8,0.5316]
[1754863537182,0.7943,4215.9,4215.5,0.6541]
[1754863537491,0.6177,4215.1,4215.0,1.5385]
[1754863537690,0.6177,4215.1,4215.0,1.2759]
[1754863538286,0.7943,4215.1,4215.0,0.266]
[1754863538488,0.2599,4215.7,4215.0,0.8844]
[1754863538680,0.3563,4215.2,4215.1,1.5385]
[1754863538883,0.6162,4215.2,4215.1,1.5385]
[1754863539189,0.6177,4215.2,4215.1,1.5385]
[1754863540286,0.4744,4215.1,4214.7,0.47444]
[1754863540490,0.6177,4214.9,4214.8,0.839]
[1754863540788,0.6177,4214.9,4214.8,1.5385]
[1754863541578,0.2599,4214.9,4214.1,0.266]
[1754863541782,1.26872,4214.9,4214.8,0.7131]
[1754863541984,1.26872,4214.9,4214.8,0.266]
[1754863542387,1.26872,4214.9,4214.5,0.3915]
[1754863542388,0.7943,4214.6,4214.5,0.266]
[1754863542584,0.6153,4214.6,4214.5,1.5385]
[1754863542784,1.09209,4215.2,4215.1,1.1046]
[1754863542986,1.09209,4215.2,4214.2,0.266]
[1754863542987,0.83319,4214.3,4214.2,0.266]
[1754863543190,1.26879,4214.3,4214.2,0.266]
[1754863543390,0.47454,4213.8,4213.7,1.2725]
[1754863543580,0.6162,4213.8,4213.7,0.6184]
[1754863543782,1.09068,4214.4,4214.3,0.8844]
[1754863544088,0.7943,4213.5,4213.4,0.32899136]
[1754863544288,28.7963,4213.5,4213.4,0.32899136]
[1754863544585,28.7963,4213.5,4213.4,0.59499136]
[1754863544586,23.56941615,4213.5,4213.4,0.59499136]
[1754863544992,23.56941615,4213.5,4213.4,0.32899136]
[1754863546189,0.4748,4211.6,4210.3,0.266]
[1754863546384,0.3563,4211.4,4211.3,1.0099]
[1754863546589,0.5284,4211.4,4211.3,0.4471]
[1754863546886,0.1763,4211.4,4211.3,1.5385]
[1754863547090,0.1748,4211.4,4211.3,1.5385]
[1754863547389,0.6496,4211.5,4211.4,1.5385]
[1754863547697,22.8178,4211.6,4211.4,0.6184]
[1754863547998,22.7002,4211.6,4211.5,1.5385]
[1754863548298,0.1697,4211.5,4209.5,0.6575]
[1754863548497,0.4749,4210.7,4210.0,0.47496]
[1754863548691,1.0033,4210.7,4210.6,1.5385]
[1754863548891,1.0033,4210.7,4210.6,1.147]
[1754863549190,23.4958,4210.7,4210.6,0.266]
[1754863549896,22.8914,4210.7,4210.6,1.5385]
[1754863550091,0.5284,4210.7,4210.6,1.5385]
[1754863550399,22.8864,4210.7,4210.6,1.5385]
[1754863550792,1.187,4211.6,4210.4,1.0683]
[1754863550793,1.26776197,4212.0,4210.4,1.0683]
[1754863550993,0.4748,4211.6,4210.7,0.47489]
[1754863551195,0.47478,4211.7,4211.1,0.47484]
[1754863551393,22.363,4211.6,4211.3,0.74082]
[1754863551595,22.362,4211.5,4211.4,0.9201]
[1754863551895,0.0015,4211.8,4210.5,1.18728]
[1754863552194,22.358,4211.7,4211.6,0.266]
[1754863552389,34.1705,4212.2,4211.6,0.266]
[1754863552589,34.1705,4212.2,4211.7,0.3915]
[1754863552590,22.358,4212.1,4211.7,0.3915]
[1754863552795,0.47474,4212.1,4211.9,0.266]
[1754863552999,0.1715,4212.5,4212.0,0.47474]
[1754863553196,0.4747,4212.5,4212.0,0.47474]
[1754863553392,22.8357,4212.5,4212.4,0.6541]
[1754863553593,0.4762,4212.5,4212.4,0.9201]
[1754863554193,0.47481,4211.4,4211.3,0.266]
[1754863554397,0.64489,4210.8,4210.4,1.0683]
[1754863554595,0.47491,4210.6,4210.4,1.0683]
[1754863554797,0.47491,4210.6,4210.5,0.266]
[1754863555396,0.0015,4211.1,4210.4,1.0683]
[1754863555701,0.47489,4210.8,4210.5,0.9201]
[1754863555904,0.47489,4210.8,4210.7,0.5286]
[1754863556201,0.0015,4211.6,4210.7,0.47489]
[1754863556390,22.363,4211.7,4211.1,0.86635]
[1754863556591,22.363,4211.7,4210.4,1.0683]
[1754863556592,22.37,4212.2,4211.6,0.9201]
[1754863556804,0.47477,4211.8,4211.4,0.47481]
[1754863556997,0.47477,4211.8,4211.5,0.9201]
[1754863557195,0.47477,4211.8,4211.3,0.47482]
[1754863557395,0.47477,4211.8,4211.4,0.47481]
[1754863557595,0.47476,4211.9,4211.6,0.5286]
[1754863557800,22.3715,4212.7,4212.0,0.9201]
[1754863557999,22.3715,4212.7,4212.1,0.9201]
[1754863558000,0.60267049,4212.6,4212.1,0.9201]
[1754863558196,34.196,4213.0,4211.0,1.18715]
[1754863558197,22.369,4213.1,4212.6,0.47468]
[1754863558499,0.47464,4213.0,4212.6,0.6575]
[1754863558696,0.17,4213.4,4211.6,1.18698]
[1754863558697,0.47462,4213.2,4212.8,0.6575]
[1754863559002,0.47462,4213.2,4213.0,0.266]
[1754863559198,0.47462,4213.2,4213.1,0.9201]
[1754863560104,0.6446,4213.4,4213.1,0.9201]
[1754863560304,0.47455,4213.7,4213.2,0.9201]
[1754863560599,0.47448,4214.4,4214.0,0.5286]
[1754863560803,0.47451,4214.2,4214.1,0.9201]
[1754863560999,0.64601,4214.2,4214.1,0.9201]
[1754863562093,0.47605,4213.7,4213.6,0.9201]
[1754863562298,0.17,4214.2,4213.0,0.47463]
[1754863562299,0.47451,4214.1,4213.1,0.5286]
[1754863562597,0.47456,4213.7,4213.4,0.9201]
[1754863562804,0.47456,4213.7,4213.6,0.9201]
[1754863563202,0.47455,4213.8,4213.7,0.9201]
[1754863567004,0.64535,4213.8,4213.7,0.9201]
[1754863567308,0.64535,4213.8,4213.7,0.266]
[1754863567613,0.7716428,4214.5,4213.5,0.47457]
[1754863567614,1.1862,4214.4,4213.5,0.47457]
[1754863567801,1.1862,4214.4,4212.6,2.901]
[1754863567802,1.18624,4214.3,4212.6,2.901]
[1754863568004,0.47457,4213.6,4213.3,0.4746]
[1754863568410,0.47457,4213.6,4213.5,0.928]
[1754863569008,0.47455,4213.8,4213.5,0.928]
[1754863569208,0.47455,4213.8,4213.6,0.928]
[1754863569506,0.47455,4213.8,4213.7,1.5642]
[1754863569811,1.00045,4213.8,4213.7,1.163]
[1754863570312,0.47463,4213.1,4213.0,0.9043]
[1754863570608,0.828,4213.4,4213.3,0.6362]
[1754863570811,0.828,4213.4,4213.3,1.163]
[1754863571004,0.1697,4213.9,4213.8,0.4607]
[1754863571209,0.99872,4214.0,4213.9,1.5642]
[1754863571611,0.82792,4214.0,4213.9,1.5642]
[1754863571807,0.47452,4214.0,4213.9,1.5642]
[1754863572210,0.47452,4214.1,4213.9,0.6362]
[1754863572511,0.47452,4214.1,4213.1,1.18655]
[1754863572512,0.47452,4214.1,4214.0,1.5642]
[1754863572911,0.3562,4214.4,4214.3,0.7087]
[1754863573111,0.5259,4214.4,4214.3,0.2587]
[1754863573311,0.47452,4214.0,4213.9,1.5642]
[1754863573508,0.7716428,4214.7,4214.3,1.031]
[1754863573713,0.1697,4214.9,4214.4,0.2587]
[1754863573912,0.60629011,4215.3,4213.9,1.18633]
[1754863573913,0.7716428,4215.3,4214.8,0.6362]
[1754863574114,0.82889,4215.2,4215.1,1.5642]
[1754863574304,0.99859,4215.2,4215.1,1.5642]
[1754863574815,0.47438,4215.3,4215.1,0.6362]
[1754863575015,1.00028,4215.3,4215.2,1.5642]
[1754863575206,1.00028,4215.3,4215.2,1.163]
[1754863575412,1.00028,4215.3,4215.2,0.8949]
[1754863575717,1.00028,4215.3,4215.2,0.7087]
[1754863576418,1.00036,4214.5,4214.4,1.163]
[1754863577504,0.83066,4214.5,4214.4,1.5642]
[1754863578017,0.3534,4215.2,4215.1,1.0374]
[1754863578217,1.12795339,4215.2,4215.1,1.5642]
[1754863578511,1.24784339,4215.2,4215.1,0.928]
[1754863578709,0.47439,4215.2,4215.1,0.928]
[1754863579509,0.47438,4215.3,4214.8,0.47443]
[1754863579815,0.47437,4215.4,4215.0,0.4012]
[1754863580111,0.47437,4215.4,4213.9,1.18632]
[1754863580112,0.47439,4215.2,4215.1,0.928]
[1754863581921,0.47439,4215.2,4215.1,1.5642]
[1754863583912,0.47025917,4215.2,4215.1,1.5642]
[1754863585223,0.47431,4215.9,4215.8,1.5642]
[1754863586223,0.82881,4215.9,4215.8,1.5642]
[1754863586415,1.00021,4215.9,4215.8,1.5642]
[1754863588525,0.47428,4216.2,4216.1,0.6362]
[1754863588717,0.77500802,4216.7,4216.3,1.0216]
[1754863588924,0.65662,4216.7,4216.6,1.5642]
[1754863589226,0.82872,4216.7,4216.6,1.5642]
[1754863589418,1.00012,4216.7,4216.6,1.5642]
[1754863590221,0.0011,4217.0,4216.6,1.0374]
[1754863590418,0.0011,4217.0,4215.8,1.18578]
[1754863590419,0.5242,4217.3,4217.2,0.6362]
[1754863590612,0.5242,4217.3,4217.2,1.5642]
[1754863590819,0.3534,4217.3,4217.2,1.5642]
[1754863591116,0.77390802,4217.7,4216.5,1.18558]
[1754863591117,0.99832,4217.6,4217.5,1.1142]
[1754863591425,1.00002,4217.6,4217.5,1.5642]
[1754863592224,1.00002,4217.6,4217.5,0.2587]
[1754863592522,0.82765,4216.4,4216.3,1.5642]
[1754863592720,1.00015,4216.4,4216.3,0.7087]
[1754863592921,0.4743,4216.0,4215.9,0.5268]
[1754863593120,0.6451,4216.0,4215.9,0.928]
[1754863593624,0.1708,4216.0,4215.9,0.928]
[1754863594626,0.47429,4216.1,4215.9,1.40231]
[1754863594929,0.47432,4215.8,4215.1,34.172]
[1754863595424,0.4743,4216.0,4215.9,0.928]
[1754863596224,0.6437,4216.0,4215.9,0.928]
[1754863596620,0.6437,4216.0,4215.9,0.2587]
[1754863596831,1.0,4216.0,4215.9,1.5649]
[1754863597033,0.8306,4216.0,4215.9,1.5649]
[1754863597226,1.0,4216.0,4215.9,1.5649]
[1754863597933,0.4743,4216.0,4215.9,1.5649]
[1754863599624,0.4743,4216.0,4215.9,2.9749]
[1754863600728,0.47426,4216.4,4216.3,1.5627]
[1754863600927,0.64576,4216.4,4216.3,1.5627]
[1754863601627,0.99996,4216.4,4216.3,1.5627]
[1754863601833,0.99996,4216.4,4216.3,0.2565]
[1754863602131,0.99996,4216.4,4216.3,1.5627]
[1754863603228,0.6081007,4217.1,4217.0,0.436]
[1754863603427,0.77390802,4217.7,4217.1,0.88607]
[1754863603629,0.47416,4217.3,4217.2,1.0347]
[1754863603928,0.47416,4217.3,4217.2,1.2912]
[1754863604130,0.47416,4217.3,4217.2,1.5627]
[1754863605536,0.82896,4217.3,4217.2,1.5627]
[1754863606229,0.99836,4217.3,4217.2,1.5627]
[1754863606630,0.47416,4217.3,4217.2,1.5627]
[1754863607032,0.82896,4217.3,4217.2,1.5627]
[1754863607237,0.99836,4217.3,4217.2,1.5627]
[1754863607843,0.82896,4217.3,4217.2,1.5627]
[1754863608447,0.99986,4217.3,4217.2,1.5627]
[1754863608839,0.47414,4217.4,4217.3,0.9399]
[1754863609044,0.47413,4217.5,4217.3,0.6228]
[1754863609347,0.3548,4218.0,4217.9,0.6228]
[1754863609543,0.47406,4218.1,4217.9,1.0347]
[1754863609845,0.47406,4218.1,4218.0,1.5627]
[1754863610046,0.64345,4218.2,4218.0,0.6228]
[1754863610247,0.81495,4218.2,4218.1,1.5627]
[1754863610643,0.64555,4218.2,4218.1,1.5627]
[1754863610843,0.99975,4218.2,4218.1,1.1508]
[1754863611144,0.99975,4218.2,4218.1,0.8793]
[1754863611345,0.1694,4218.0,4217.3,1.41405]
[1754863611552,0.5257,4217.9,4217.8,1.5627]
[1754863611848,0.99978,4217.9,4217.8,1.5627]
[1754863613052,0.47408,4217.9,4217.8,1.5627]
[1754863613449,0.83038,4217.9,4217.8,1.5627]
[1754863613654,0.99978,4217.9,4217.8,1.5627]
[1754863614450,0.99978,4217.9,4217.8,1.1508]
[1754863614949,0.99978,4217.9,4217.8,1.5627]
[1754863616250,0.99978,4217.9,4217.8,1.1508]
[1754863617854,0.99978,4217.9,4217.8,1.5627]
[1754863619254,0.3548,4217.3,4217.2,0.2715]
[1754863619556,0.3548,4217.3,4217.2,1.5627]
[1754863619557,0.99985,4217.3,4217.2,1.5627]
[1754863621660,0.99992,4216.8,4216.7,1.5627]
[1754863621855,0.83052,4216.8,4216.7,1.5627]
[1754863622055,0.82902,4216.8,4216.7,1.5627]
[1754863622254,0.47422,4216.8,4216.7,1.5627]
[1754863624355,0.0009,4217.1,4216.7,0.6228]
[1754863624560,0.47418,4217.1,4217.0,1.5627]
[1754863624858,0.82898,4217.1,4217.0,1.5627]
[1754863625059,0.83138,4217.1,4217.0,1.5627]
[1754863625264,1.00108,4217.1,4217.0,1.5627]
[1754863625957,0.64742,4216.7,4216.6,0.6502]
[1754863626162,0.64742,4216.7,4216.6,0.2735]
[1754863626163,1.13362,4216.7,4216.6,0.2735]
[1754863626863,0.1875,4216.2,4216.1,0.8602]
[1754863627168,0.47428,4216.2,4216.1,1.5751]
[1754863627765,1.00433,4216.6,4216.5,0.6514]
[1754863628067,1.00433,4216.6,4216.5,1.5751]
[1754863629168,1.00433,4216.6,4216.5,1.1798]
[1754863630960,1.00433,4216.6,4216.5,1.5751]
[1754863631969,0.47423,4216.6,4216.5,1.5751]
[1754863632567,0.83393,4216.6,4216.5,1.5751]
[1754863632769,1.00433,4216.6,4216.5,1.5751]
[1754863635068,0.47423,4216.7,4216.5,1.5751]
[1754863635272,0.47423,4216.7,4215.7,1.18581]
[1754863635273,0.47423,4216.7,4216.6,1.5751]
[1754863635474,0.1664149,4217.1,4217.0,0.6514]
[1754863635676,1.00423,4217.5,4217.4,0.6514]
[1754863635972,0.6405449,4217.5,4217.4,0.6514]
[1754863636170,0.78021129,4217.7,4217.5,0.47412]
[1754863636372,0.47408,4218.0,4217.9,1.5751]
[1754863639174,0.47406,4218.1,4217.9,0.6514]
[1754863639374,0.47406,4218.2,4218.1,1.5751]
[1754863639577,1.1698121,4218.4,4218.3,1.5751]
[1754863639775,0.83373,4218.4,4218.3,1.5751]
[1754863640279,1.00413,4218.4,4218.3,1.5751]
[1754863644079,0.16659427,4218.5,4218.4,1.5751]
[1754863644271,0.005,4218.6,4218.5,2.04912]
[1754863644669,0.16659427,4219.2,4219.1,2.04905]
[1754863644883,0.16659427,4219.3,4219.2,1.5751]
[1754863645085,1.1,4219.5,4219.4,1.1151]
[1754863645278,1.1,4219.5,4219.4,1.5751]
[1754863645875,1.5739,4219.5,4219.4,1.5751]
[1754863646380,2.1176,4219.5,4219.4,1.5751]
[1754863646582,0.84826,4219.0,4218.9,1.3016]
[1754863646779,1.01766,4219.0,4218.9,1.3016]
[1754863646983,0.83926,4219.0,4218.9,1.5751]
[1754863647173,0.83366,4219.0,4218.9,1.5751]
[1754863647380,0.47396,4219.0,4218.9,1.5751]
[1754863647582,0.47395,4219.1,4219.0,0.9237]
[1754863647789,0.47395,4219.1,4219.0,1.5751]
[1754863649083,0.47394,4219.2,4219.1,0.9249]
[1754863649287,0.47394,4219.2,4219.1,1.5751]
[1754863649986,1.01764,4219.2,4219.1,0.7388]
[1754863650387,1.14694,4219.2,4219.1,0.7388]
[1754863651190,1.14694,4219.2,4219.1,1.5751]
[1754863651191,1.01764,4219.2,4219.1,1.5751]
[1754863651693,1.14694,4219.2,4219.1,0.2735]
[1754863653385,1.14698,4218.8,4218.7,0.2735]
[1754863654386,1.01772,4218.5,4218.4,0.7149]
[1754863654577,1.14702,4218.5,4218.4,0.7149]
[1754863654979,1.01772,4218.5,4218.4,1.1798]
[1754863655289,1.01772,4218.5,4218.4,1.5751]
[1754863656788,0.63990979,4219.1,4219.0,0.6388]
[1754863656990,0.47395,4219.1,4219.0,1.5588]
[1754863657288,0.364,4219.3,4219.2,0.6388]
[1754863657485,0.83793,4219.3,4219.2,1.3003]
[1754863657688,0.83793,4219.3,4219.2,1.5588]
[1754863658292,0.83793,4219.3,4218.3,1.18508]
[1754863658293,1.1,4219.5,4219.4,1.5588]
[1754863660788,1.57391,4219.5,4219.4,1.5588]
[1754863661098,2.11851,4219.5,4219.4,0.2585]
[1754863661797,2.11851,4219.5,4219.4,0.7107]
[1754863662099,2.11851,4219.5,4219.4,0.9789]
[1754863662397,2.24831,4219.5,4219.4,0.2585]
[1754863662598,2.11851,4219.5,4219.4,1.5588]
[1754863664299,2.11851,4219.5,4219.4,1.1655]
[1754863664496,2.24831,4219.5,4219.4,0.8973]
[1754863664702,2.11851,4219.5,4219.4,1.5588]
[1754863667098,1.1,4219.5,4219.4,1.5588]
[1754863667800,0.47384,4220.1,4220.0,0.6388]
[1754863668001,0.47384,4220.1,4220.0,1.5588]
[1754863668803,0.47383,4220.2,4220.0,1.6459]
[1754863669003,0.74383,4220.2,4220.1,1.5588]
[1754863670305,0.92073,4220.2,4220.1,1.5588]
[1754863670602,1.31423,4220.2,4220.1,1.5588]
[1754863670804,1.49493,4220.2,4220.1,1.5588]
[1754863671001,1.66493,4220.2,4220.1,1.5588]
[1754863671398,1.4558,4220.1,4220.0,1.0071]
[1754863671603,2.06903689,4220.1,4220.0,1.0071]
[1754863671804,1.1911,4220.1,4220.0,2.5659]
[1754863672008,1.0211,4220.1,4220.0,2.5659]
[1754863672308,1.18775844,4220.1,4220.0,2.5659]
[1754863673005,0.16665844,4220.1,4220.0,2.5659]
[1754863673307,0.47382,4220.3,4220.2,1.5588]
[1754863673495,0.74382,4220.3,4220.2,1.5588]
[1754863673699,1.31422,4220.3,4220.2,1.5588]
[1754863674206,1.10142,4220.3,4220.2,1.5588]
[1754863674401,1.49492,4220.3,4220.2,1.5588]
[1754863675507,1.31422,4220.3,4220.2,1.5588]
[1754863678608,1.49492,4220.3,4220.2,1.5588]
[1754863680510,1.66492,4220.3,4220.2,1.5588]
[1754863682611,1.49492,4220.3,4220.2,1.5588]
[1754863683007,1.66492,4220.3,4220.2,1.5588]
[1754863683907,1.66492,4220.3,4220.2,1.1655]
[1754863684114,1.10144,4220.1,4220.0,1.3747]
[1754863684413,1.92964,4220.1,4220.0,1.9014]
[1754863684712,1.92964,4220.1,4220.0,1.7148]
[1754863685106,1.92964,4220.1,4220.0,1.5338]
[1754863685300,1.92964,4220.1,4220.0,1.9014]
[1754863685512,1.92964,4220.1,4220.0,2.1726]
[1754863686313,1.92964,4220.1,4220.0,2.5585]
[1754863688314,1.0211,4220.1,4220.0,2.5585]
[1754863688508,0.61362693,4220.7,4220.6,1.5454]
[1754863688811,23.46171,4221.2,4221.1,1.5454]
[1754863689011,24.66891884,4221.2,4221.1,1.5454]
[1754863689210,1.25418,4220.6,4220.5,0.99]
[1754863689410,1.93558,4220.6,4220.5,1.1595]
[1754863689717,1.93558,4220.6,4220.5,1.5454]
[1754863690006,0.47378,4220.7,4220.5,0.6227]
[1754863690210,0.47378,4220.7,4220.6,1.5454]
[1754863690415,1.76608,4220.7,4220.6,1.5454]
[1754863690617,1.93558,4220.7,4220.6,1.5454]
[1754863691207,0.47384,4220.2,4220.1,0.6227]
[1754863691417,0.74224,4220.2,4220.1,1.5454]
[1754863691605,0.74224,4220.2,4220.1,2.4653]
[1754863691812,0.47382,4220.3,4220.1,2.4653]
[1754863692111,0.47379,4220.6,4220.5,1.5454]
[1754863693213,0.78065701,4221.0,4220.1,0.9199]
[1754863693420,0.78065701,4221.0,4220.2,1.5454]
[1754863693421,0.47382,4220.3,4220.2,1.5454]
[1754863694015,0.47381,4220.4,4220.3,1.5454]
[1754863694314,0.413,4220.8,4220.4,0.4738]
[1754863694522,0.47375,4220.9,4220.8,1.5454]
[1754863694718,1.0233,4220.5,4220.4,0.2775]
[1754863694922,1.4618,4220.2,4220.1,1.9285]
[1754863695521,1.2045,4220.2,4220.1,2.4653]
[1754863696126,1.4618,4220.2,4220.1,2.0794]
[1754863696424,0.47382,4220.3,4220.2,1.5454]
[1754863697022,1.49430392,4220.8,4220.7,0.6227]
[1754863697326,1.93486,4220.8,4220.7,1.5454]
[1754863697824,2.10160392,4220.8,4220.7,1.5454]
[1754863698026,1.93486,4220.8,4220.7,1.5454]
[1754863698217,2.10160392,4220.8,4220.7,0.3546]
[1754863698418,1.93486,4220.8,4220.7,0.3546]
[1754863698618,2.10160392,4220.8,4220.7,0.3546]
[1754863698816,1.93486,4220.8,4220.7,1.1595]
[1754863699023,2.10160392,4220.8,4220.7,1.5454]
[1754863699227,0.4408,4220.8,4220.7,1.5454]
[1754863699427,1.02054392,4220.8,4220.7,1.5454]
[1754863699924,1.20174392,4220.8,4220.7,1.5454]
[1754863700325,1.035,4220.8,4220.7,1.5454]
[1754863700731,1.035,4220.8,4220.3,0.6227]
[1754863700732,1.50881,4220.4,4220.3,0.6227]
[1754863700930,1.035,4220.4,4220.3,1.5454]
[1754863701328,1.4611,4220.4,4220.3,1.5454]
[1754863702018,0.4738,4220.5,4220.3,1.1595]
[1754863702332,1.4611,4220.4,4220.3,1.5454]
[1754863704922,0.4738,4220.5,4220.4,0.8914]
[1754863705127,0.4738,4220.5,4220.4,1.5454]
[1754863705328,0.7422,4220.5,4220.4,1.5454]
[1754863705626,1.3276,4220.5,4220.4,1.5454]
[1754863707025,0.74223,4220.2,4220.1,2.4653]
[1754863707226,1.32763,4220.2,4220.1,2.4653]
[1754863708325,1.50883,4220.2,4220.1,2.0794]
[1754863708526,1.4611,4220.2,4220.1,1.2745]
[1754863708836,1.4611,4220.2,4220.1,2.4653]
[1754863711330,0.8538,4220.2,4220.1,2.4653]
[1754863711528,0.4408,4220.2,4220.1,2.4653]
[1754863712034,0.16674392,4220.5,4220.4,1.09651]
[1754863712225,0.88678,4220.7,4220.5,1.5454]
[1754863712226,0.16674392,4220.6,4220.5,1.5454]
[1754863712421,0.43514392,4220.6,4220.5,1.5454]
[1754863712629,0.8538,4220.6,4220.5,1.5454]
[1754863712831,1.02054392,4220.6,4220.5,1.5454]
[1754863713027,1.035,4220.6,4220.5,1.5454]
[1754863713223,1.37054392,4220.6,4220.5,1.5454]
[1754863713429,1.2038,4220.6,4220.5,1.5454]
[1754863713629,1.36971474,4220.6,4220.5,1.5454]
[1754863713932,1.2038,4220.6,4220.5,1.5454]
[1754863714121,1.2038,4220.6,4220.5,2.6599]
[1754863714324,1.94175018,4221.1,4221.0,1.2679]
[1754863714530,1.84346432,4221.1,4221.0,1.5454]
[1754863714732,2.10076432,4221.1,4221.0,1.5454]
[1754863715236,1.62702432,4221.1,4221.0,2.01914]
[1754863715430,1.0321,4221.2,4221.1,1.3686]
[1754863715729,1.201,4220.6,4220.5,1.1145]
[1754863715930,1.63992432,4220.6,4220.5,1.1145]
[1754863716430,1.63992432,4220.6,4219.1,2.08071415]
[1754863716431,7.63992432,4220.6,4219.4,0.2765]
[1754863716630,1.3056,4219.3,4219.2,1.5492]
[1754863716821,0.1868,4219.3,4219.2,1.5492]
[1754863717133,0.4281,4219.6,4219.5,1.5492]
[1754863717930,0.8637,4219.6,4219.5,1.5492]
[1754863718125,0.63978432,4219.9,4219.6,0.9194]
[1754863718331,1.77946,4219.9,4219.8,1.5492]
[1754863719836,0.16592432,4220.2,4220.1,1.5492]
[1754863720034,0.16592432,4220.3,4220.1,0.6298]
[1754863720335,1.02962432,4220.5,4220.4,1.5492]
[1754863720532,0.8637,4220.5,4220.4,1.5492]
[1754863720733,1.3375,4220.5,4220.4,1.5492]
[1754863720933,0.7801345,4220.6,4220.5,2.02299]
[1754863721131,1.06775432,4221.1,4221.0,1.5492]
[1754863721333,0.1868,4221.1,4221.0,1.5492]
[1754863721637,0.16592432,4221.1,4221.0,1.5492]
[1754863721834,0.1868,4221.9,4221.8,0.6298]
[1754863722029,0.4281,4221.9,4221.8,0.6298]
[1754863722228,0.8637,4221.9,4221.8,0.6298]
[1754863722634,0.8637,4221.9,4221.8,1.5492]
[1754863722635,0.3686,4221.9,4221.8,1.5492]
[1754863722838,1.36441,4222.2,4222.1,1.5492]
[1754863723132,1.61821,4222.2,4222.1,1.5492]
[1754863723327,1.89121,4222.2,4222.1,1.1619]
[1754863723536,1.89121,4222.2,4222.1,0.8854]
[1754863723732,1.89121,4222.2,4220.6,1.18445]
[1754863723733,1.64998,4221.6,4221.5,0.2682]
[1754863723936,1.4176,4221.6,4221.5,1.5492]